Cogmind - Beta 15 @@@ ROGUE MODE // 2025.05.06 @ 16:34:19 Player: Rotpup_ Result: Destroyed by Y-45 Defender with Heavy Assault Rifle Performance ------------- Evolutions (1) 500 Regions Visited (4) 800 Robots Destroyed (49) 245 Value Destroyed (1210) 1210 Prototype IDs (2) 40 Alien Tech Used (0) 0 Bonus (204) 204 TOTAL SCORE: 2999 Bonus ------- High Alert Combat Kills 4 Entered Garrisons 200 Cogmind --------- Core Integrity 0/400 Matter 48/300 Energy 265/265 System Corruption 0% Temperature Cool (9) Movement Treading (320) Ox2 Location -9/Garrison Parts ------- > --- POWER (1) -------- Improved Ion Engine > --- PROPULSION (2) --- Light Treads Light Treads > --- UTILITY (4) ------ Huge Storage Unit Visual Processing Unit Advanced Targeting Computer > --- WEAPON (2) ------- (None) > --- INVENTORY (25) --- Relay Coupler [NC] (24) Relay Coupler [Swarmer] (27) Relay Coupler [Swarmer] (25) Relay Coupler [Grunt] (28) Relay Coupler [Duelist] (25) Datajack Datajack Peak State ------------ > --- POWER ------------ Cooled Ion Engine > --- PROPULSION ------- Light Treads Light Treads > --- UTILITY ---------- Small Storage Unit Small Storage Unit Seismic Detector Advanced Targeting Computer > --- WEAPON ----------- Assault Cannon Assault Cannon > --- INVENTORY -------- Ion Engine Wheel Compact Wheel Compact Wheel Assault Cannon Grenade Launcher Datajack Datajack [Rating: 18] Favorites ----------- Power Cooled Ion Engine Engine Cooled Ion Engine Propulsion Light Treads Treads Light Treads Wheel Wheel Utility Small Storage Unit Device Seismic Detector Storage Small Storage Unit Processor Advanced Targeting Computer Weapon Assault Cannon Energy Gun EM Pulse Gun Ballistic Gun Heavy Assault Rifle Ballistic Cannon Assault Cannon Launcher Grenade Launcher Special Melee Weapon Datajack Build | -11 -10 -9 -9 -9 ------- Run | Yrd Mat Mat Sto Gar Slots Evolved 2 | . . 2 . . Power . | . . . . . Propulsion . | . . . . . Utility 2 | . . 2 . . Weapon . | . . . . . Parts Attached 34 | 10 2 8 10 4 Power 6 | 2 . 2 . 2 Engine 6 | 2 . 2 . 2 Core . | . . . . . Reactor . | . . . . . Propulsion 8 | 2 . 1 4 1 Treads 6 | 2 . 1 2 1 Leg . | . . . . . Wheel 2 | . . . 2 . Hover . | . . . . . Flight . | . . . . . Utility 7 | 3 . 2 2 . Device 1 | 1 . . . . Storage 3 | 2 . . 1 . Processor 3 | . . 2 1 . Hackware . | . . . . . Protection . | . . . . . Artifact . | . . . . . Weapon 13 | 3 2 3 4 1 Energy Gun 4 | 1 2 . 1 . Energy Cannon . | . . . . . Ballistic Gun 3 | 2 . . 1 . Ballistic Cannon 3 | . . 2 1 . Launcher 1 | . . . 1 . Special Weapon . | . . . . . Impact Weapon . | . . . . . Slashing Weapon . | . . . . . Piercing Weapon . | . . . . . Special Melee Weapon 2 | . . 1 . 1 Unidentified Prototypes 2 | . . 2 . . Parts Lost 12 | . . . 4 8 Power 2 | . . . . 2 Propulsion 3 | . . . . 3 Utility 1 | . . . 1 . Weapon 6 | . . . 3 3 Highest Loss Streak 6 | . . . 4 6 To Critical Strikes 1 | . . . 1 . Average Backups 8 | 4 7 7 7 10 Power 1 | . 1 1 1 1 Propulsion 2 | 2 3 3 2 2 Utility 1 | . 1 . . 3 Weapon 1 | . 1 2 1 1 Tool/Special . | . . . . . Unused Backups 8 | . 1 . 2 5 Power . | . . . . . Propulsion 3 | . 1 . 2 . Utility 5 | . . . . 5 Weapon . | . . . . . Tool/Special . | . . . . . Average Slot Usage (%) 92 | . 100 96 95 75 Engine 10 | . 14 10 11 4 Treads 19 | . 28 21 21 3 Wheel 3 | . . . . 17 Device 8 | . 14 10 7 . Storage 18 | . 14 21 22 11 Processor 10 | . . 10 11 22 Energy Gun 4 | . 22 1 . . Ballistic Gun 2 | . 5 . 2 6 Ballistic Cannon 12 | . . 18 18 6 Special Melee Weapon 1 | . . . . 3 Peak Build Rating 18 | 7 7 18 18 17 Average Rating 13 | 4 6 16 17 13 On Entrance 9 | . 7 7 18 17 Naked Turns . | . . . . . Heaviest Build 106 | 17 15 29 106 96 Greatest Support 40 | 40 40 40 40 40 Greatest Overweight (x) 9 | . . 9 4 4 Average Overweight (x) . | . . . . 3 Largest Inventory Capacity 25 | 8 8 8 25 25 Average Capacity 11 | 6 8 8 9 25 Most Carried 13 | 7 8 8 9 13 Average Carried 8 | 4 7 7 7 10 Final Capacity 25 | 8 8 8 25 25 Final Carried 8 | 7 8 8 8 7 Class Distribution -------------------- 100% | Mutant Dominant Class ---------------- Mutant | -10/Materials Mutant | -9/Materials Mutant | -9/Storage Mutant | -9/Garrison Resources | -11 -10 -9 -9 -9 ----------- Run | Yrd Mat Mat Sto Gar Matter Collected 1237 | 244 29 367 518 79 Remotely . | . . . . . Salvage Created 1218 | 79 44 291 756 48 Parts 84 | 6 5 13 53 7 Haulers Intercepted 3 | . . 2 1 . Recyclers Shooed . | . . . . . Parts Field Recycled . | . . . . . Retrieved Matter . | . . . . . Parts Self-Destructed . | . . . . . Prevented . | . . . . . Kills | -11 -10 -9 -9 -9 ------- Run | Yrd Mat Mat Sto Gar Combat Hostiles Destroyed 34 | . 3 6 16 9 Cannons 26 | . . 6 13 7 AOE 8 | . 3 . 3 2 Classes Destroyed 10 | 2 1 5 2 . Worker 2 | . . . 2 . Builder 1 | . . 1 . . Tunneler 1 | 1 . . . . Hauler 3 | . . 2 1 . Recycler 5 | 1 . 1 3 . Operator 2 | . . 1 1 . Watcher 1 | . . . 1 . Swarmer 15 | . 3 . 3 9 Grunt 13 | . . 5 8 . Sentry 6 | . . 1 5 . Best Kill Streak 6 | 2 3 4 6 4 Combat Bots Only 5 | . 3 2 5 4 Max Kills in Single Turn 3 | 1 3 1 3 1 Gunslinging . | . . . . . Exploded 3 | . 3 . 2 1 Melee . | . . . . . Uniques/NPCs Destroyed . | . . . . . Combat | -11 -10 -9 -9 -9 -------- Run | Yrd Mat Mat Sto Gar Hostile Shots Fired 243 | . 5 21 68 149 Missed 67 | . . 6 18 43 Hits 176 | . 5 15 50 106 Projectile 176 | . 5 15 50 106 Critical Strikes 6 | . . . 4 2 Damage Taken 1931 | . 70 182 563 1116 Core 408 | . 7 40 26 335 Absorbed by Shields . | . . . . . Core Remaining (%) 98 | 100 97 . . . Volleys Fired 104 | 4 3 27 44 26 Largest 2 | 2 2 2 2 2 Hottest 80 | 40 80 74 77 60 Shots Fired 174 | 8 6 54 71 35 Gun 27 | 8 6 . 3 10 Cannon 138 | . . 54 62 22 Launcher 9 | . . . 6 3 Special . | . . . . . Kinetic 158 | 8 . 54 64 32 Thermal 1 | . . . 1 . Explosive 9 | . . . 6 3 Electromagnetic 6 | . 6 . . . Robot Hit Streak 14 | 3 2 14 8 3 Robot Miss Streak 4 | 1 4 3 4 3 Penetration Max . | . . . . . Secondary Targets . | . . . . . Shots Hit Robots 112 | 4 2 39 43 24 Core Hits 53 | 4 4 10 26 9 Critical Kills . | . . . . . Critical Parts Destroyed . | . . . . . Critical Strikes 3 | . . 3 . . Blast 3 | . . 3 . . Melee Attacks 5 | . . . . 5 Impact . | . . . . . Slashing . | . . . . . Piercing . | . . . . . Sneak Attacks . | . . . . . Combat Hostiles . | . . . . . Follow-up Attacks . | . . . . . Damage Inflicted 2799 | 33 98 873 1270 525 Guns 153 | 33 22 . 12 86 Cannons 2157 | . . 873 1023 261 Explosions 489 | . 76 . 235 178 Melee . | . . . . . Ramming . | . . . . . Kinetic 2288 | 33 . 873 1035 347 Thermal 76 | . 76 . . . Explosive 413 | . . . 235 178 Electromagnetic 22 | . 22 . . . Impact . | . . . . . Slashing . | . . . . . Piercing . | . . . . . Highest Corruption . | . . . . . Average Corruption . | . . . . . Corruption Purged . | . . . . . Corruption Blocked . | . . . . . Overload Shots . | . . . . . Overflow Damage 38 | . . 10 5 23 Projectiles 38 | . . 10 5 23 Explosions . | . . . . . Melee . | . . . . . Knockbacks 22 | . . 11 9 2 Impact . | . . . . . Kinetic 20 | . . 10 8 2 Secondary 2 | . . 1 1 . Self-Inflicted Damage 104 | . 29 . . 75 Shots 3 | . 1 . . 2 Rammed . | . . . . . Targets Rammed . | . . . . . Kicked . | . . . . . Crushed . | . . . . . Highest Temperature 50 | . 30 42 50 19 Average Temperature 13 | . 15 15 12 7 Received Heat Transfer 522 | . . 72 270 180 Siege Activations . | . . . . . Martial Activations . | . . . . . Shielding Activations . | . . . . . Robots Disrupted . | . . . . . Combat Hostiles . | . . . . . Robots Corrupted . | . . . . . Combat Hostiles . | . . . . . Parts Fried . | . . . . . Impact Corruptions 1 | . . . 1 . Robots Melted . | . . . . . Combat Hostiles . | . . . . . Parts Melted . | . . . . . Heat Transferred 100 | . 100 . . . Parts Sabotaged . | . . . . . Parts Stolen . | . . . . . Parts Stripped . | . . . . . Power Chain Reactions 1 | . 1 . . . Alert | -11 -10 -9 -9 -9 ------- Run | Yrd Mat Mat Sto Gar Maximum Alert Level 2 | . . . 1 2 Low Security (%) 72 | 100 100 100 68 . Level 1 23 | . . . 31 78 Level 2 4 | . . . . 21 Level 3 . | . . . . . Level 4 . | . . . . . Level 5 . | . . . . . High Security . | . . . . . Max Security . | . . . . . Peak Influence 471 | 5 73 52 349 471 Initial 217 | . . 22 1 217 Average 107 | 1 6 16 136 332 Influence Increases 1132 | 10 73 187 558 304 Destroy 0b10 Robot/C 680 | . 60 120 320 180 Destroy 0b10 Robot/NC 75 | 10 . 25 40 . Destroy Leader 128 | . 10 24 84 10 Successful Hack 9 | . . 5 4 . Disable Machine 75 | . . . 75 . Anti-Garrison Action 50 | . . . . 50 Destroy Structure 55 | . 3 13 20 19 Lose Combat Pursuer 60 | . . . 15 45 Influence Decreases 691 | 10 20 235 228 198 Entered New Map 153 | . . 31 4 118 Time Decay 418 | 10 20 204 184 . Lost Part 120 | . . . 40 80 Squads Dispatched 5 | . 1 1 3 . Investigation 1 | . . . 1 . Extermination . | . . . . . Reinforcement 4 | . 1 1 2 . Assault . | . . . . . Garrison . | . . . . . Intercept . | . . . . . Searches Triggered . | . . . . . Construction Impeded . | . . . . . Haulers Reinforced . | . . . . . Active Scanning Responses . | . . . . . Cargo Convoy Interrupts . | . . . . . Stealth | -11 -10 -9 -9 -9 --------- Run | Yrd Mat Mat Sto Gar Distress Signals 2 | . 1 1 . . Communications Jammed . | . . . . . Distress Signals . | . . . . . Times Spotted 53 | . 6 13 21 13 Peak Tracking Total 8 | . 4 4 5 8 Tactical Retreats 2 | . . . 1 1 Traps | -11 -10 -9 -9 -9 ------- Run | Yrd Mat Mat Sto Gar Traps Triggered 6 | . . 4 1 1 Indirectly . | . . . . . Trap Hack Attempts 36 | . . 1 . 35 Triggered . | . . . . . Disarmed 2 | . . . . 2 Reprogrammed 3 | . . . . 3 Reused . | . . . . . Traps Extracted . | . . . . . Installed . | . . . . . Triggered . | . . . . . Machines | -11 -10 -9 -9 -9 ---------- Run | Yrd Mat Mat Sto Gar Machines Disabled 6 | . . . 5 1 Max in Single Turn 1 | . . . 1 1 Garrison Relay 1 | . . . . 1 Machines Repaired . | . . . . . Machines Dismantled . | . . . . . Machines Sabotaged . | . . . . . Overloaded Fab Kills . | . . . . . Hacking | -11 -10 -9 -9 -9 --------- Run | Yrd Mat Mat Sto Gar Machines Accessed 2 | . . 1 1 . Terminals 1 | . . 1 . . Fabricators . | . . . . . Repair Stations . | . . . . . Recycling Units . | . . . . . Scanalyzers . | . . . . . Garrison Access 1 | . . . 1 . Total Hacks 3 | . . 2 1 . Successful 2 | . . 1 1 . Failed 1 | . . 1 . . Catastrophic . | . . . . . Database Lockouts . | . . . . . Manual 2 | . . 2 . . Terminals 2 | . . 2 . . Fabricators . | . . . . . Repair Stations . | . . . . . Recycling Units . | . . . . . Scanalyzers . | . . . . . Garrison Access 1 | . . . 1 . Terminal Hacks . | . . . . . Fabricator Hacks . | . . . . . Repair Station Hacks . | . . . . . Recycling Unit Hacks . | . . . . . Scanalyzer . | . . . . . Garrison Access Hacks 1 | . . . 1 . Unlock Access 1 | . . . 1 . Unauthorized Hacks 1 | . . 1 . . Terminals 1 | . . 1 . . Botnet 1 | . . 1 . . Fabricators . | . . . . . Repair Stations . | . . . . . Recycling Units . | . . . . . Scanalyzers . | . . . . . Garrison Access . | . . . . . Data Cores Recovered . | . . . . . Used . | . . . . . Hacking Detections 1 | . . 1 . . Full Trace Events . | . . . . . Feedback Events . | . . . . . Feedback Blocked . | . . . . . Robot Schematics Acquired . | . . . . . Robots Built . | . . . . . Authchips . | . . . . . Time . | . . . . . Total Robot Build Rating . | . . . . . Part Schematics Acquired . | . . . . . Parts Built . | . . . . . Authchips . | . . . . . Time . | . . . . . Total Part Build Rating . | . . . . . Parts Repaired . | . . . . . Time . | . . . . . Parts Recycled . | . . . . . Recycled Matter . | . . . . . Retrieved Matter . | . . . . . Retrieved Components . | . . . . . Parts Scanalyzed . | . . . . . Part Schematics Acquired . | . . . . . Parts Damaged . | . . . . . Bothacking | -11 -10 -9 -9 -9 ------------ Run | Yrd Mat Mat Sto Gar Used RIF Installer . | . . . . . Robots Hacked . | . . . . . Non-combat . | . . . . . Combat . | . . . . . Robot Hacks Applied . | . . . . . Relay Couplers Released 5 | . . . . 5 Machine Destruction 5 | . . . . 5 Fabnet Peak Effective % . | . . . . . Robots Rewired . | . . . . . Allies Hacked . | . . . . . Hacks Repelled . | . . . . . Allies | -11 -10 -9 -9 -9 -------- Run | Yrd Mat Mat Sto Gar Total Allies . | . . . . . Largest Group . | . . . . . Highest-Rated Group . | . . . . . Highest-Rated Ally . | . . . . . Total Orders . | . . . . . Ally Attacks . | . . . . . Total Damage . | . . . . . Kills . | . . . . . Allies Corrupted . | . . . . . Allies Melted . | . . . . . Intel | -11 -10 -9 -9 -9 ------- Run | Yrd Mat Mat Sto Gar Active Infowar (turns) 1798 | 21 382 582 427 386 Optics 398 | . . . 12 386 Seismic 1400 | 21 382 582 415 . Robot Analysis Total . | . . . . . Derelict Logs Recovered . | . . . . . Drone Launches . | . . . . . Drone Recoveries . | . . . . . Exploration | -11 -10 -9 -9 -9 ------------- Run | Yrd Mat Mat Sto Gar Turns Passed 2039 | 112 382 589 570 386 Spaces Moved 844 | 54 138 257 257 138 Core 9 | 7 . 2 . . Treads 708 | 47 138 255 249 19 Legs . | . . . . . Wheels 127 | . . . 8 119 Hover . | . . . . . Flight . | . . . . . Fastest Speed 50 | 50 160 160 140 140 Average Speed 163 | 145 160 161 164 172 Slowest Speed 500 | 160 160 500 320 480 Overloaded Moves . | . . . . . Propulsion Burnouts . | . . . . . Robots Hopped . | . . . . . Potential Cave-ins . | . . . . . Cave-ins Triggered . | . . . . . Exploration Rate (%) 22 | 4 26 21 39 22 Regions Visited 4 Branch Regions 1 Pre-discovered Areas . | . . . . . Known Exits Taken 1 | . . . 1 . Unknown Exits Taken 3 | 1 1 1 . . Scrap Searched . | . . . . . Spaces Dug . | . . . . . Terrain Destroyed 34 | . 3 9 18 4 Melee . | . . . . . Projectile 16 | . . 9 7 . AOE 18 | . 3 . 11 4 Terrain Rammed . | . . . . . Walls Destroyed . | . . . . . Machines Disabled . | . . . . . Actions | -11 -10 -9 -9 -9 --------- Run | Yrd Mat Mat Sto Gar Total 1325 | 79 295 370 334 247 Wait 232 | . 145 56 11 20 Move 841 | 53 137 256 257 138 Hop . | . . . . . Pick Up 31 | 12 4 4 6 5 Fast Attach 17 | 2 1 13 1 . Attach 16 | 5 1 . 4 6 Detach . | . . . . . Swap 19 | 3 . 7 5 4 Drop 16 | . 4 6 6 . Fire 104 | 4 3 27 44 26 Melee 5 | . . . . 5 Ram . | . . . . . Kick . | . . . . . Crush . | . . . . . Escape Stasis 8 | . . . . 8 Rewire . | . . . . . Trap 36 | . . 1 . 35 Miscellaneous . | . . . . . Route ------- -11/Scrapyard -10/Materials -9/Materials -9/Storage -9/Garrison History --------- Turn | Location | Event 18 | -11/Scrapyard | Discovered new exit (range 16) 113 | -11/Scrapyard | Entered Materials 301 | -10/Materials | Build established: Mutant 481 | -10/Materials | Discovered new exit (range 3) 495 | -10/Materials | Entered another Materials area 495 | -9/Materials | Evolved 2 slots: Utility x2 999 | -9/Materials | Discovered new exit (range 16) 1084 | -9/Materials | Entered Storage 1564 | -9/Storage | Lost 4 parts (1u3w) 1654 | -9/Storage | Identified exit to Garrison 1654 | -9/Storage | Entered Garrison 1659 | -9/Garrison | Triggered checkpoint 1731 | -9/Garrison | Triggered checkpoint 1772 | -9/Garrison | Garrison Relay disabled 1892 | -9/Garrison | Triggered checkpoint 1957 | -9/Garrison | Core integrity fell below 50% 2011 | -9/Garrison | Core integrity fell below 20% 2013 | -9/Garrison | Lost 6 parts (3n3w) 2040 | -9/Garrison | Destroyed by Y-45 Defender with Heavy Assault Rifle Last Messages --------------- 01869_ Stasis Trap reprogrammed. 01921_ Destroyed Flight Unit. 01921_ S-10 Pest destroyed. 01937_ Acquired 14 matter. 01938_ Acquired 12 matter. Garrison Door activated. 01946_ Destroyed Lgt. Ion Engine. 01946_ S-10 Pest knocked back. 01949_ S-10 Pest destroyed. 01952_ Critical hit (Burn: +37). 01952_ Assault Cannon destroyed. 01958_ Wheel destroyed. 01958_ Hvy. Assault Rifle destroyed. 01958_ Wheel destroyed. 01961_ S-10 Pest destroyed. 01964_ Grenade Launcher destroyed. 01982_ Lgt. Treads destroyed. 02012_ S-10 Pest destroyed. 02016_ Cld. Ion Engine destroyed. 02019_ Critical hit (Burn: +37). Map ----- +----------------------------------------------------+ | ????????????????????????????#######??????????????? | | ????????????????????????????# #??????????????? | | ????????????????????????????# #??????????????? | | ????????????????????????????# #??????????????? | | ????????????????????????????### #??????????????? | | ??????????????????????????????# #??????????????? | | ??????????????????????????????# #??????????????? | | ??????????????????????????????# #??????????????? | | ????????????????????##????????# #??????????????? | | ???????????????????? ????????# #??????????????? | | ???????????????????" "???????# #??????????????? | | ???????????????????" "???????# #??????????????? | | ???????????????????" "???????# ###????????????? | | ???????????????????" "???????# #????????????? | | ??????????????????? ???????# #????????????? | | ??????????????????? ???????# #????????????? | | ???????????????????" "???????# ###????????????? | | ???????????????????" "???????# #??????????????? | | ???????????????????" "???????# #??????????????? | | ????????????????"""" """"????# #??????????????? | | ????????????????? ?????# #??????????????? | | ?????????????????? ??????# #??????????????? | | ???????????????????# #???????# #??????????????? | | ?????????##!!####### ######### #??????????????? | | ?????????#! #??????????????? | | ?????????#! ## @ Y ^^#??????????????? | | ??????????????######[=######### ^#??????????????? | | ?????????????????### ###?????# #??????????????? | | ?????????????????#% *#"#?????# #??###?????????? | | ?????????????????# * = "#?????# #?? #?????????? | | ?????????????????# #?????# #??# #?????#???? | | ?????????????????# "#?????# [#??# #???? ##? | | ?????????????????# #"#?????# *%#### #### # | | ?????????????????### ###?????# = | | ???????????????????####???????# | | ??????????????????????????????# | | ??????????????????????????????######### ## | | ??????????????????????????????????????#### = #??? | | ????????????????????????????????????????? ?? | | ????????????????????????????????????????? | | ????????????????????????????????????????? | | ????????????????????????????????????????? | | ????????????????????????????????????????## ## | | ?????????????????????????????????????????# #? | | ?????????????????????????????????????????# ?? | | ?????????????????????????????????????????? ?? | | ?????????????????????????????????????????? ??? | | ?????????????????????????????????????????? ##??? | | ?????????????????????????????????????????? #???? | | ?????????????????????????????????????????? #???? | +----------------------------------------------------+ Best States ------------- Heat Dissipation 28 Energy Generation 14 Energy Capacity 280 Matter Stores 300 Matter Capacity 300 Sight Range 18 Terrain Scan Density 10 Evasion (%) 40 Targeting Accuracy 8 Recoil Reduction 2 Item Schematics ----------------- None Robot Schematics ------------------ None Fabricated ------------ Nothing Repaired ---------- Nothing Alien Tech Used ----------------- None Achievements -------------- Hehehe Challenges ------------ None Game ------ Seed ConstructTechBotcube Manual? 0 Play Time 00:19:24 Cumulative 10.8 hours Start 2025.05.06 @ 16:18:24 End 2025.05.06 @ 16:34:19 Sessions 1 Manual Loads 0 Difficulty Rogue Special Mode None Game No. 30 Rogue 29 Adventurer 0 Explorer 1 Win Type - Total 0 Types 0/0/0/0/0/0/0/0/0/0 Lore% 9 Gallery% 20 Achievement% 21 Wizard Run 0 Options --------- Layout 1 ASCII 0 Keyboard 0 Movement Mouse Keybinds 0 Fullscreen 2 Font 24/Smallcaps Map View 50x35 Zoom Use 0% Tactical HUD 1 Map Filters NONE Filters NONE Steam 1 RUN: 0f546458-6429-4bf5-bb15-60c3cebceaf3